[Event "44th Chess Olympiad Women 2022"]
[Site "Chennai"]
[Date "2022.07.31"]
[Round "3.28"]
[White "Fredericia, Louise"]
[Black "Moshoboro Arona"]
[Result "1-0"]
[WhiteElo "1990"]
[BlackElo "1611"]
[Annotator "NA RC"]
[PlyCount "97"]
[EventDate "2022.??.??"]
[TimeControl "60"]

1. e4 {[%emt 0:00:18]} e6 {[%emt 0:00:05]} 2. c4 {[%emt 0:00:28]} d5 {[%emt 0:
00:00]} 3. cxd5 {[%emt 0:00:36]} exd5 {[%emt 0:00:08]} 4. exd5 {[%emt 0:00:05]}
Nf6 {[%emt 0:00:31]} 5. Bb5+ {[%emt 0:00:22]} Bd7 {[%emt 0:03:30]} 6. Bc4 {
[%emt 0:00:15]} Bc5 {[%emt 0:19:24]} 7. d4 {[%emt 0:02:58]} Bb6 {[%emt 0:02:01]
} 8. Nf3 {[%emt 0:10:44]} O-O {[%emt 0:00:53]} 9. h3 {[%emt 0:05:44]} Bf5 {
[%emt 0:17:02]} 10. Nc3 {[%emt 0:00:33]} Ba5 {[%emt 0:01:02]} 11. O-O {[%emt 0:
00:00]} Bxc3 {[%emt 0:06:38]} 12. bxc3 {[%emt 0:00:08]} Nxd5 {[%emt 0:00:16]}
13. Ba3 {[%emt 0:04:19]} Re8 {[%emt 0:19:25]} 14. Ne5 {[%emt 0:09:36]} Be6 {
[%emt 0:06:42]} 15. Qf3 {[%emt 0:01:24]} c6 {[%emt 0:02:00]} 16. Rab1 {[%emt 0:
00:00]} b5 {[%emt 0:00:53]} 17. Bb3 {[%emt 0:03:14]} a5 {[%emt 0:03:34]} 18.
Bc1 {[%emt 0:01:12]} a4 {[%emt 0:00:29]} 19. Bc2 {[%emt 0:00:11]} Qf6 {[%emt 0:
00:00]} 20. Qg3 {[%emt 0:03:44]} Bf5 {[%emt 0:02:21]} 21. Ng4 {[%emt 0:01:34]}
Bxg4 {[%emt 0:00:39]} 22. hxg4 {[%emt 0:00:43]} Nd7 {[%emt 0:05:44]} 23. Qd3 {
[%emt 0:14:30]} Nf8 {[%emt 0:01:16]} 24. g5 {[%emt 0:07:01]} Qg6 {[%emt 0:00:
00]} 25. Bd2 {[%emt 0:04:42]} Qh5 {[%emt 0:00:59]} 26. Rfe1 {[%emt 0:05:18]}
Qg4 {[%emt 0:01:09]} 27. Re4 {[%emt 0:05:48]} Rxe4 {[%emt 0:00:25]} 28. Qxe4 {
[%emt 0:00:07]} Qxe4 {[%emt 0:00:57]} 29. Bxe4 {[%emt 0:00:07]} Rb8 {[%emt 0:
00:00]} 30. c4 {[%emt 0:02:12]} Ne7 {[%emt 0:00:24]} 31. Bb4 {[%emt 0:03:46]}
Nfg6 {[%emt 0:00:35]} 32. Bc5 {[%emt 0:02:28]} Kh8 {[%emt 0:00:42]} 33. g3 {
[%emt 0:00:25]} Kg8 {[%emt 0:00:24]} 34. f4 {[%emt 0:00:11]} Rb7 {[%emt 0:00:
00]} 35. f5 {[%emt 0:00:28]} Nf8 {[%emt 0:00:21]} 36. cxb5 {[%emt 0:00:16]} Nc8
{[%emt 0:00:53]} 37. bxc6 {[%emt 0:01:21]} Rxb1+ {[%emt 0:00:15]} 38. Bxb1 {
[%emt 0:00:05]} g6 {[%emt 0:00:14]} 39. d5 {[%emt 0:00:58]} Kg7 {[%emt 0:01:14]
} 40. d6 {[%emt 0:00:58]} gxf5 {[%emt 0:00:24]} 41. d7 {[%emt 0:30:28]} Ne6 {
[%emt 0:00:50]} 42. dxc8=Q {[%emt 0:00:00]} Nxc5 {[%emt 0:00:09]} 43. Qxf5 {
[%emt 0:00:00]} Ne6 {[%emt 0:00:27]} 44. Qf6+ {[%emt 0:00:00]} Kg8 {[%emt 0:00:
00]} 45. Bf5 {[%emt 0:00:00]} a3 {[%emt 0:03:07]} 46. Bxe6 {[%emt 0:00:00]}
fxe6 {[%emt 0:00:26]} 47. c7 {[%emt 0:00:00]} h5 {[%emt 0:00:10]} 48. c8=Q+ {
[%emt 0:00:00]} Kh7 {[%emt 0:00:16]} 49. Qch8# {[%emt 0:00:00]} 1-0

[Event "44th Chess Olympiad Women 2022"]
[Site "Chennai"]
[Date "2022.07.31"]
[Round "3.28"]
[White "Kakulidis, Ellen"]
[Black "Banda Natalie Katlo"]
[Result "1-0"]
[WhiteElo "2057"]
[BlackElo "1688"]
[Annotator "NA RC"]
[PlyCount "31"]
[EventDate "2022.??.??"]
[TimeControl "60"]

1. d4 {[%emt 0:00:03]} d5 {[%emt 0:00:15]} 2. c4 {[%emt 0:00:06]} c6 {[%emt 0:
00:00]} 3. Nf3 {[%emt 0:00:39]} Nf6 {[%emt 0:00:47]} 4. g3 {[%emt 0:00:16]}
dxc4 {[%emt 0:01:08]} 5. Bg2 {[%emt 0:00:16]} b5 {[%emt 0:06:56]} 6. a4 {
[%emt 0:05:10]} Bb7 {[%emt 0:00:00]} 7. O-O {[%emt 0:07:23]} a6 {[%emt 0:04:22]
} 8. Qc2 {[%emt 0:07:06]} Nbd7 {[%emt 0:11:48]} 9. b3 {[%emt 0:04:03]} Nb6 {
[%emt 0:07:48]} 10. Nbd2 {[%emt 0:17:54]} cxb3 {[%emt 0:02:08]} 11. Nxb3 {
[%emt 0:10:52]} Nxa4 {[%emt 0:16:48]} 12. Rxa4 {[%emt 0:00:27]} bxa4 {[%emt 0:
00:00]} 13. Nc5 {[%emt 0:00:17]} Ra7 {[%emt 0:09:03]} 14. Ne5 {[%emt 0:05:21]}
Nd5 {[%emt 0:07:27]} 15. Nxb7 {[%emt 0:01:11]} Rxb7 {[%emt 0:02:22]} 16. Qxc6+
{[%emt 0:00:12]} 1-0

[Event "44th Chess Olympiad Women 2022"]
[Site "Chennai"]
[Date "2022.07.31"]
[Round "3.28"]
[White "Otisitswe Ruth"]
[Black "Steffensen, Elena"]
[Result "0-1"]
[WhiteElo "1552"]
[BlackElo "2044"]
[Annotator "NA RC"]
[PlyCount "140"]
[EventDate "2022.??.??"]
[TimeControl "60"]

1. e4 {[%emt 0:00:32]} g6 {[%emt 0:00:05]} 2. d4 {[%emt 0:00:07]} Bg7 {[%emt 0:
00:00]} 3. Nc3 {[%emt 0:00:10]} c6 {[%emt 0:00:09]} 4. Nf3 {[%emt 0:00:20]} d5
{[%emt 0:00:10]} 5. h3 {[%emt 0:00:13]} Nf6 {[%emt 0:00:08]} 6. Bd3 {[%emt 0:
00:00]} dxe4 {[%emt 0:00:32]} 7. Nxe4 {[%emt 0:00:13]} Nxe4 {[%emt 0:00:46]} 8.
Bxe4 {[%emt 0:00:08]} O-O {[%emt 0:01:18]} 9. O-O {[%emt 0:02:34]} Nd7 {
[%emt 0:00:29]} 10. Bg5 {[%emt 0:00:46]} Nf6 {[%emt 0:01:48]} 11. Bd3 {[%emt 0:
00:00]} Re8 {[%emt 0:03:43]} 12. Re1 {[%emt 0:02:58]} Be6 {[%emt 0:03:02]} 13.
c3 {[%emt 0:02:27]} Bd5 {[%emt 0:02:34]} 14. Ne5 {[%emt 0:04:56]} Nd7 {[%emt 0:
00:00]} 15. Ng4 {[%emt 0:10:11]} Nf6 {[%emt 0:15:45]} 16. Ne5 {[%emt 0:11:31]}
Qb6 {[%emt 0:07:57]} 17. Qc2 {[%emt 0:03:19]} Rad8 {[%emt 0:07:10]} 18. Re2 {
[%emt 0:19:52]} Qa5 {[%emt 0:07:20]} 19. Bd2 {[%emt 0:07:17]} Qc7 {[%emt 0:00:
00]} 20. Bf4 {[%emt 0:01:55]} Qc8 {[%emt 0:01:44]} 21. b3 {[%emt 0:02:04]} Be6
{[%emt 0:02:34]} 22. Rae1 {[%emt 0:01:57]} c5 {[%emt 0:04:26]} 23. Bb5 {
[%emt 0:12:33]} Rf8 {[%emt 0:01:02]} 24. dxc5 {[%emt 0:01:12]} Qxc5 {[%emt 0:
00:00]} 25. Bc4 {[%emt 0:02:26]} Bxc4 {[%emt 0:00:58]} 26. Nxc4 {[%emt 0:00:07]
} Nd5 {[%emt 0:03:39]} 27. Be3 {[%emt 0:00:42]} Qc7 {[%emt 0:02:16]} 28. Bxa7 {
[%emt 0:03:57]} b5 {[%emt 0:03:16]} 29. Rxe7 {[%emt 0:02:58]} Nxe7 {[%emt 0:00:
00]} 30. Bb6 {[%emt 0:00:06]} Qd7 {[%emt 0:01:18]} 31. Bxd8 {[%emt 0:00:22]}
Rxd8 {[%emt 0:00:17]} 32. Na3 {[%emt 0:01:17]} Nf5 {[%emt 0:01:29]} 33. c4 {
[%emt 0:02:52]} Nd4 {[%emt 0:01:45]} 34. Qe4 {[%emt 0:00:59]} b4 {[%emt 0:00:
00]} 35. Nc2 {[%emt 0:01:44]} Nxc2 {[%emt 0:01:13]} 36. Qxc2 {[%emt 0:00:04]}
Bc3 {[%emt 0:00:30]} 37. Re2 {[%emt 0:00:20]} Qd1+ {[%emt 0:01:11]} 38. Qxd1 {
[%emt 0:01:19]} Rxd1+ {[%emt 0:00:03]} 39. Kh2 {[%emt 0:00:07]} Kf8 {[%emt 0:
00:00]} 40. Kg3 {[%emt 0:00:27]} Rd2 {[%emt 0:00:31]} 41. Rxd2 {[%emt 0:30:31]}
Bxd2 {[%emt 0:30:11]} 42. Kf3 {[%emt 0:00:00]} Ke7 {[%emt 0:00:00]} 43. Ke4 {
[%emt 0:00:00]} Kd6 {[%emt 0:00:00]} 44. g4 {[%emt 0:00:00]} Kc5 {[%emt 0:00:
00]} 45. Ke5 {[%emt 0:00:00]} Bc3+ {[%emt 0:00:00]} 46. Ke4 {[%emt 0:00:00]}
Be1 {[%emt 0:00:00]} 47. f4 {[%emt 0:00:00]} Bd2 {[%emt 0:00:00]} 48. Ke5 {
[%emt 0:00:00]} Bc3+ {[%emt 0:00:00]} 49. Ke4 {[%emt 0:00:00]} Bd4 {[%emt 0:00:
00]} 50. f5 {[%emt 0:00:00]} g5 {[%emt 0:00:00]} 51. Kd3 {[%emt 0:00:00]} Bf6 {
[%emt 0:00:00]} 52. Ke4 {[%emt 0:00:00]} Kd6 {[%emt 0:00:00]} 53. Ke3 {[%emt 0:
00:00]} Ke5 {[%emt 0:00:00]} 54. Kd3 {[%emt 0:00:00]} Be7 {[%emt 0:00:00]} 55.
Ke3 {[%emt 0:00:00]} Bc5+ {[%emt 0:00:00]} 56. Kf3 {[%emt 0:00:00]} Kd4 {
[%emt 0:00:00]} 57. Kg3 {[%emt 0:00:00]} Kc3 {[%emt 0:00:00]} 58. h4 {[%emt 0:
00:00]} gxh4+ {[%emt 0:00:00]} 59. Kxh4 {[%emt 0:00:00]} Kb2 {[%emt 0:00:00]}
60. Kg5 {[%emt 0:00:00]} Kxa2 {[%emt 0:00:00]} 61. Kf6 {[%emt 0:00:00]} Kxb3 {
[%emt 0:00:00]} 62. Kxf7 {[%emt 0:00:00]} Kxc4 {[%emt 0:00:00]} 63. Kg7 {
[%emt 0:00:00]} b3 {[%emt 0:00:00]} 64. g5 {[%emt 0:00:00]} b2 {[%emt 0:00:00]}
65. Kxh7 {[%emt 0:00:00]} b1=Q {[%emt 0:00:00]} 66. Kg6 {[%emt 0:00:00]} Kd5 {
[%emt 0:00:00]} 67. Kf6 {[%emt 0:00:00]} Bd4+ {[%emt 0:00:00]} 68. Ke7 {
[%emt 0:00:00]} Qxf5 {[%emt 0:00:00]} 69. g6 {[%emt 0:00:00]} Qxg6 {[%emt 0:00:
00]} 70. Kf8 {[%emt 0:00:00]} Bc5# {[%emt 0:00:00]} 0-1

[Event "44th Chess Olympiad Women 2022"]
[Site "Chennai"]
[Date "2022.07.31"]
[Round "3.29"]
[White "Ayzenberg, Alena"]
[Black "Natareno, Elvia"]
[Result "1-0"]
[WhiteElo "2023"]
[BlackElo "1581"]
[Annotator "NA COMBH"]
[PlyCount "56"]
[EventDate "2022.??.??"]
[TimeControl "60"]

1. d4 {[%emt 0:00:03]} Nf6 {[%emt 0:00:14]} 2. c4 {[%emt 0:00:07]} g6 {[%emt 0:
00:00]} 3. Nc3 {[%emt 0:01:07]} Bg7 {[%emt 0:00:48]} 4. e4 {[%emt 0:00:20]} d6
{[%emt 0:00:55]} 5. Nf3 {[%emt 0:00:32]} O-O {[%emt 0:01:07]} 6. Be2 {[%emt 0:
00:00]} a6 {[%emt 0:01:07]} 7. h3 {[%emt 0:04:03]} Nc6 {[%emt 0:02:31]} 8. d5 {
[%emt 0:02:38]} Na7 {[%emt 0:01:09]} 9. a4 {[%emt 0:06:22]} e6 {[%emt 0:04:13]}
10. O-O {[%emt 0:05:13]} Re8 {[%emt 0:03:30]} 11. Bd3 {[%emt 0:09:27]} Bd7 {
[%emt 0:05:41]} 12. Be3 {[%emt 0:04:35]} Nc8 {[%emt 0:05:28]} 13. Qd2 {[%emt 0:
00:00]} exd5 {[%emt 0:04:28]} 14. cxd5 {[%emt 0:01:31]} Rb8 {[%emt 0:00:27]}
15. Bg5 {[%emt 0:08:01]} c5 {[%emt 0:06:00]} 16. Rfe1 {[%emt 0:06:44]} b5 {
[%emt 0:08:13]} 17. e5 {[%emt 0:06:07]} dxe5 {[%emt 0:03:12]} 18. Nxe5 {
[%emt 0:02:23]} b4 {[%emt 0:06:04]} 19. Nxd7 {[%emt 0:14:27]} Qxd7 {[%emt 0:00:
00]} 20. Bxf6 {[%emt 0:01:33]} Bxf6 {[%emt 0:00:31]} 21. Ne4 {[%emt 0:00:57]}
Bd4 {[%emt 0:02:12]} 22. Bxa6 {[%emt 0:03:28]} Qd8 {[%emt 0:04:10]} 23. Bb5 {
[%emt 0:01:28]} Re5 {[%emt 0:02:40]} 24. Qf4 {[%emt 0:06:15]} Kg7 {[%emt 0:00:
00]} 25. Rad1 {[%emt 0:02:25]} Qxd5 {[%emt 0:08:13]} 26. Nf6 {[%emt 0:02:48]}
Rxe1+ {[%emt 0:03:35]} 27. Rxe1 {[%emt 0:00:03]} Qd6 {[%emt 0:00:28]} 28. Ne4 {
[%emt 0:02:01]} Qd5 1-0

[Event "44th Chess Olympiad Women 2022"]
[Site "Chennai"]
[Date "2022.07.31"]
[Round "3.29"]
[White "Juarez Garcia, Daniela"]
[Black "Machlik, Edit"]
[Result "0-1"]
[WhiteElo "1725"]
[BlackElo "2084"]
[Annotator "NA RC"]
[PlyCount "94"]
[EventDate "2022.??.??"]
[TimeControl "60"]

1. e4 {[%emt 0:00:02]} c6 {[%emt 0:00:03]} 2. d4 {[%emt 0:00:12]} d5 {[%emt 0:
00:00]} 3. exd5 {[%emt 0:00:18]} cxd5 {[%emt 0:00:05]} 4. Bd3 {[%emt 0:00:44]}
Nc6 {[%emt 0:00:46]} 5. c3 {[%emt 0:00:50]} Nf6 {[%emt 0:00:08]} 6. h3 {
[%emt 0:00:44]} g6 {[%emt 0:02:01]} 7. Qc2 {[%emt 0:00:51]} Bg7 {[%emt 0:05:27]
} 8. Nf3 {[%emt 0:01:12]} Qc7 {[%emt 0:07:55]} 9. O-O {[%emt 0:01:40]} O-O {
[%emt 0:00:59]} 10. Re1 {[%emt 0:01:00]} Nh5 {[%emt 0:15:17]} 11. Be3 {[%emt 0:
00:00]} b6 {[%emt 0:36:48]} 12. a4 {[%emt 0:18:03]} Bb7 {[%emt 0:01:47]} 13.
Na3 {[%emt 0:04:44]} Rac8 {[%emt 0:00:16]} 14. Qd2 {[%emt 0:03:18]} Rfe8 {
[%emt 0:00:31]} 15. Nb5 {[%emt 0:15:04]} Qd8 {[%emt 0:00:21]} 16. Bh6 {[%emt 0:
00:00]} Bh8 {[%emt 0:01:25]} 17. g4 {[%emt 0:06:48]} Nf6 {[%emt 0:00:32]} 18.
Ne5 {[%emt 0:01:21]} a6 {[%emt 0:10:13]} 19. Qg5 {[%emt 0:18:25]} Nxe5 {
[%emt 0:02:34]} 20. dxe5 {[%emt 0:02:49]} axb5 {[%emt 0:01:54]} 21. exf6 {
[%emt 0:02:22]} Bxf6 {[%emt 0:00:12]} 22. Qd2 {[%emt 0:00:56]} b4 {[%emt 0:00:
00]} 23. cxb4 {[%emt 0:00:24]} e5 {[%emt 0:00:26]} 24. g5 {[%emt 0:00:16]} Bh8
{[%emt 0:00:20]} 25. a5 {[%emt 0:00:08]} e4 {[%emt 0:01:11]} 26. Bb5 {[%emt 0:
00:00]} Re7 {[%emt 0:01:55]} 27. Red1 {[%emt 0:00:33]} Qd6 {[%emt 0:00:40]} 28.
Rac1 {[%emt 0:01:00]} Rec7 {[%emt 0:00:40]} 29. Rxc7 {[%emt 0:01:23]} Qxc7 {
[%emt 0:00:25]} 30. a6 {[%emt 0:00:12]} Ba8 {[%emt 0:00:24]} 31. b3 {[%emt 0:
00:00]} d4 {[%emt 0:03:05]} 32. Bc4 {[%emt 0:00:01]} Qe5 {[%emt 0:01:59]} 33.
b5 {[%emt 0:01:17]} Re8 {[%emt 0:00:15]} 34. Kf1 {[%emt 0:01:56]} Qf5 {[%emt 0:
00:00]} 35. h4 {[%emt 0:00:31]} Qh3+ {[%emt 0:00:56]} 36. Ke1 {[%emt 0:00:18]}
Qh1+ {[%emt 0:00:27]} 37. Bf1 {[%emt 0:00:16]} Qxh4 {[%emt 0:01:04]} 38. Qe2 {
[%emt 0:00:35]} e3 {[%emt 0:00:53]} 39. Rc1 {[%emt 0:00:28]} Qe4 {[%emt 0:00:
00]} 40. fxe3 {[%emt 0:00:30]} dxe3 {[%emt 0:00:26]} 41. Qc4 {[%emt 0:30:47]}
Qf3 {[%emt 0:03:53]} 42. Qd3 {[%emt 0:00:00]} Qf2+ {[%emt 0:05:48]} 43. Kd1 {
[%emt 0:00:00]} Bf3+ {[%emt 0:00:29]} 44. Be2 {[%emt 0:00:00]} Bxe2+ {[%emt 0:
00:00]} 45. Qxe2 {[%emt 0:00:00]} Rd8+ {[%emt 0:00:08]} 46. Kc2 {[%emt 0:00:00]
} Qxe2+ {[%emt 0:00:06]} 47. Kb1 {[%emt 0:00:00]} Qb2# {[%emt 0:00:10]} 0-1

[Event "44th Chess Olympiad Women 2022"]
[Site "Chennai"]
[Date "2022.07.31"]
[Round "3.29"]
[White "Lopez L., Dairyn D."]
[Black "Rodsmoen, Maud"]
[Result "0-1"]
[WhiteElo "1574"]
[BlackElo "1975"]
[Annotator "NA RC"]
[PlyCount "50"]
[EventDate "2022.??.??"]
[TimeControl "60"]

1. d4 {[%emt 0:00:06]} d5 {[%emt 0:00:05]} 2. e3 {[%emt 0:00:08]} Nf6 {[%emt 0:
00:00]} 3. Bd3 {[%emt 0:00:17]} Bg4 {[%emt 0:02:18]} 4. Nf3 {[%emt 0:00:22]} e6
{[%emt 0:01:28]} 5. Nbd2 {[%emt 0:00:28]} c5 {[%emt 0:05:23]} 6. c3 {[%emt 0:
00:00]} Nc6 {[%emt 0:01:10]} 7. O-O {[%emt 0:00:30]} Bd6 {[%emt 0:02:00]} 8.
Qe1 {[%emt 0:04:57]} cxd4 {[%emt 0:05:50]} 9. exd4 {[%emt 0:00:08]} Qc7 {
[%emt 0:02:11]} 10. h3 {[%emt 0:02:08]} Bh5 {[%emt 0:00:57]} 11. Bc2 {[%emt 0:
00:00]} O-O {[%emt 0:10:27]} 12. Kh1 {[%emt 0:13:59]} Rae8 {[%emt 0:04:53]} 13.
Rg1 {[%emt 0:03:51]} e5 {[%emt 0:04:42]} 14. g4 {[%emt 0:08:34]} exd4 {[%emt 0:
00:00]} 15. Qf1 {[%emt 0:00:11]} Bg6 {[%emt 0:02:29]} 16. Bxg6 {[%emt 0:04:05]}
fxg6 {[%emt 0:00:33]} 17. cxd4 {[%emt 0:00:22]} Ne4 {[%emt 0:03:25]} 18. Qg2 {
[%emt 0:01:25]} Qf7 {[%emt 0:06:28]} 19. Rf1 {[%emt 0:12:43]} Nxd2 {[%emt 0:00:
00]} 20. Ng5 {[%emt 0:04:49]} Qf4 {[%emt 0:04:52]} 21. Bxd2 {[%emt 0:00:11]}
Qxd2 {[%emt 0:01:17]} 22. Qxd5+ {[%emt 0:00:15]} Kh8 {[%emt 0:00:27]} 23. Nf7+
{[%emt 0:07:25]} Rxf7 {[%emt 0:00:30]} 24. Qxf7 {[%emt 0:00:08]} Rf8 {[%emt 0:
00:00]} 25. Qe6 {[%emt 0:00:59]} Qf4 {[%emt 0:00:27]} 0-1

[Event "44th Chess Olympiad Women 2022"]
[Site "Chennai"]
[Date "2022.07.31"]
[Round "3.29"]
[White "Machlik, Monika"]
[Black "Mazariegos, Silvia Carolina"]
[Result "1-0"]
[WhiteElo "2111"]
[BlackElo "1851"]
[Annotator "NA"]
[PlyCount "75"]
[EventDate "2022.??.??"]
[TimeControl "60"]

1. d4 {[%emt 0:00:01]} d6 {[%emt 0:00:09]} 2. Nf3 {[%emt 0:00:28]} g6 {[%emt 0:
00:00]} 3. g3 {[%emt 0:00:39]} Bg7 {[%emt 0:00:15]} 4. Bg2 {[%emt 0:00:07]} Nc6
{[%emt 0:01:03]} 5. O-O {[%emt 0:01:01]} f5 {[%emt 0:02:55]} 6. d5 {[%emt 0:00:
00]} Nb8 {[%emt 0:03:06]} 7. Nd4 {[%emt 0:02:35]} Nf6 {[%emt 0:02:24]} 8. c4 {
[%emt 0:01:26]} O-O {[%emt 0:05:09]} 9. Nc3 {[%emt 0:01:59]} a5 {[%emt 0:15:23]
} 10. e4 {[%emt 0:09:41]} fxe4 {[%emt 0:05:50]} 11. Nxe4 {[%emt 0:02:33]} Nxe4
{[%emt 0:00:53]} 12. Bxe4 {[%emt 0:00:03]} Na6 {[%emt 0:00:59]} 13. Bg5 {
[%emt 0:03:08]} Nc5 {[%emt 0:05:49]} 14. Bg2 {[%emt 0:03:28]} h6 {[%emt 0:00:
00]} 15. Be3 {[%emt 0:02:16]} Rb8 {[%emt 0:00:31]} 16. Qd2 {[%emt 0:03:11]} Kh7
{[%emt 0:08:11]} 17. Qxa5 {[%emt 0:02:34]} e5 {[%emt 0:06:07]} 18. dxe6 {
[%emt 0:06:00]} Nxe6 {[%emt 0:07:08]} 19. Rad1 {[%emt 0:07:13]} Bd7 {[%emt 0:
00:00]} 20. Qd2 {[%emt 0:04:05]} Qf6 {[%emt 0:06:35]} 21. Nxe6 {[%emt 0:03:29]}
Bxe6 {[%emt 0:01:22]} 22. b3 {[%emt 0:02:52]} b6 {[%emt 0:03:58]} 23. Rfe1 {
[%emt 0:06:08]} Bg4 {[%emt 0:02:01]} 24. Rc1 {[%emt 0:00:34]} Bf3 {[%emt 0:00:
00]} 25. Bxf3 {[%emt 0:08:04]} Qxf3 {[%emt 0:00:07]} 26. Qd5 {[%emt 0:00:48]}
Qxd5 {[%emt 0:01:11]} 27. cxd5 {[%emt 0:00:01]} Rb7 {[%emt 0:00:16]} 28. Rc4 {
[%emt 0:00:42]} Ra8 {[%emt 0:00:27]} 29. a4 {[%emt 0:02:08]} Bf6 {[%emt 0:00:
00]} 30. Bd2 {[%emt 0:00:43]} Rf8 {[%emt 0:00:54]} 31. Rf4 {[%emt 0:03:01]}
Rbb8 {[%emt 0:00:17]} 32. Rc1 {[%emt 0:01:01]} Rbc8 {[%emt 0:01:02]} 33. Be3 {
[%emt 0:00:47]} g5 {[%emt 0:00:33]} 34. Rfc4 {[%emt 0:00:21]} Bb2 {[%emt 0:00:
00]} 35. Rxc7+ {[%emt 0:00:41]} Rxc7 {[%emt 0:00:14]} 36. Rxc7+ {[%emt 0:00:02]
} Kg6 {[%emt 0:00:10]} 37. Rc6 {[%emt 0:02:00]} Ba3 {[%emt 0:00:15]} 38. Rxb6 {
[%emt 0:00:36]} 1-0

[Event "44th Chess Olympiad Women 2022"]
[Site "Chennai"]
[Date "2022.07.31"]
[Round "3.30"]
[White "Barbier, Astrid"]
[Black "Bagga, Khushi"]
[Result "1-0"]
[WhiteElo "1879"]
[BlackElo "1328"]
[Annotator "NA RC"]
[PlyCount "97"]
[EventDate "2022.??.??"]
[TimeControl "60"]

1. e4 {[%emt 0:00:03]} e5 {[%emt 0:00:03]} 2. Nf3 {[%emt 0:00:05]} Nc6 {
[%emt 0:00:15]} 3. Bb5 {[%emt 0:00:05]} Nd4 {[%emt 0:00:12]} 4. Nxd4 {[%emt 0:
00:00]} exd4 {[%emt 0:00:06]} 5. O-O {[%emt 0:00:40]} c6 {[%emt 0:00:05]} 6.
Bc4 {[%emt 0:00:19]} Bc5 {[%emt 0:00:15]} 7. Bxf7+ {[%emt 0:06:25]} Kxf7 {
[%emt 0:12:04]} 8. Qh5+ {[%emt 0:01:15]} g6 {[%emt 0:01:36]} 9. Qxc5 {[%emt 0:
00:00]} Qf6 {[%emt 0:00:42]} 10. d3 {[%emt 0:05:26]} d6 {[%emt 0:05:32]} 11.
Qg5 {[%emt 0:02:49]} Qxg5 {[%emt 0:11:53]} 12. Bxg5 {[%emt 0:00:06]} Be6 {
[%emt 0:01:33]} 13. Nd2 {[%emt 0:01:20]} h6 {[%emt 0:03:53]} 14. Bf4 {[%emt 0:
00:00]} Rd8 {[%emt 0:03:29]} 15. Bg3 {[%emt 0:09:17]} Ne7 {[%emt 0:04:27]} 16.
Nb3 {[%emt 0:09:09]} d5 {[%emt 0:13:00]} 17. Nxd4 {[%emt 0:04:30]} dxe4 {
[%emt 0:02:00]} 18. Nxe6 {[%emt 0:01:08]} Kxe6 {[%emt 0:00:52]} 19. Rae1 {
[%emt 0:02:00]} Nd5 {[%emt 0:13:37]} 20. Rxe4+ {[%emt 0:02:10]} Kf7 {[%emt 0:
00:00]} 21. Rfe1 {[%emt 0:02:28]} Rd7 {[%emt 0:01:24]} 22. f3 {[%emt 0:01:52]}
b6 {[%emt 0:05:29]} 23. a3 {[%emt 0:01:39]} Rc8 {[%emt 0:02:53]} 24. Bf2 {
[%emt 0:02:31]} c5 {[%emt 0:01:37]} 25. g3 {[%emt 0:02:23]} Nf6 {[%emt 0:01:36]
} 26. R4e2 {[%emt 0:00:53]} Nd5 {[%emt 0:00:29]} 27. Kf1 {[%emt 0:01:48]} Nf6 {
[%emt 0:02:32]} 28. Re5 {[%emt 0:03:09]} c4 {[%emt 0:02:21]} 29. d4 {[%emt 0:
00:00]} c3 {[%emt 0:01:31]} 30. b3 {[%emt 0:00:59]} g5 {[%emt 0:01:04]} 31. g4
{[%emt 0:03:09]} Nd5 {[%emt 0:02:38]} 32. Rf5+ {[%emt 0:02:51]} Kg6 {[%emt 0:
00:00]} 33. h4 {[%emt 0:01:58]} Ne7 {[%emt 0:02:13]} 34. Re6+ {[%emt 0:07:49]}
Kg7 {[%emt 0:00:37]} 35. Rff6 {[%emt 0:00:55]} Ng8 {[%emt 0:00:52]} 36. Rg6+ {
[%emt 0:01:00]} Kf7 {[%emt 0:00:22]} 37. h5 {[%emt 0:01:57]} Kf8 {[%emt 0:00:
00]} 38. Kg2 {[%emt 0:03:06]} Kf7 {[%emt 0:00:13]} 39. Kg3 {[%emt 0:00:32]} Kf8
{[%emt 0:01:29]} 40. a4 {[%emt 0:07:44]} Kf7 {[%emt 0:00:30]} 41. f4 {[%emt 0:
00:00]} gxf4+ {[%emt 0:30:29]} 42. Kxf4 {[%emt 0:01:08]} Kf8 {[%emt 0:01:32]}
43. Kg3 {[%emt 0:00:30]} Rd5 {[%emt 0:00:37]} 44. Be3 {[%emt 0:01:50]} Rc7 {
[%emt 0:00:00]} 45. Rc6 {[%emt 0:00:00]} Rdd7 {[%emt 0:00:00]} 46. d5 {[%emt 0:
00:00]} Kf7 {[%emt 0:00:00]} 47. Rxc7 {[%emt 0:00:00]} Rxc7 {[%emt 0:00:00]}
48. d6 {[%emt 0:00:00]} Rd7 {[%emt 0:00:00]} 49. Bxh6 {[%emt 0:00:00]} 1-0

[Event "44th Chess Olympiad Women 2022"]
[Site "Chennai"]
[Date "2022.07.31"]
[Round "3.30"]
[White "Ray, Hiya"]
[Black "Barbier, Wiebke"]
[Result "0-1"]
[WhiteElo "1586"]
[BlackElo "1970"]
[Annotator "NA RC"]
[PlyCount "76"]
[EventDate "2022.??.??"]
[TimeControl "60"]

1. d4 {[%emt 0:00:02]} d5 {[%emt 0:00:03]} 2. Nf3 {[%emt 0:00:06]} e6 {[%emt 0:
00:00]} 3. c4 {[%emt 0:00:12]} a6 {[%emt 0:00:10]} 4. Qc2 {[%emt 0:02:23]} dxc4
{[%emt 0:03:15]} 5. Qxc4 {[%emt 0:00:36]} b5 {[%emt 0:00:15]} 6. Qc2 {[%emt 0:
00:00]} Bb7 {[%emt 0:00:31]} 7. e4 {[%emt 0:03:42]} Nc6 {[%emt 0:04:53]} 8. Qd1
{[%emt 0:10:39]} Nf6 {[%emt 0:06:03]} 9. Bd3 {[%emt 0:01:51]} Nb4 {[%emt 0:00:
00]} 10. e5 {[%emt 0:08:10]} Nxd3+ {[%emt 0:03:54]} 11. Qxd3 {[%emt 0:00:08]}
Nd5 {[%emt 0:00:27]} 12. a3 {[%emt 0:03:42]} h6 {[%emt 0:03:06]} 13. O-O {
[%emt 0:01:27]} c5 {[%emt 0:03:25]} 14. Nc3 {[%emt 0:03:49]} c4 {[%emt 0:06:13]
} 15. Qe4 {[%emt 0:04:34]} Be7 {[%emt 0:02:36]} 16. Qg4 {[%emt 0:01:42]} g6 {
[%emt 0:04:38]} 17. Ne1 {[%emt 0:04:27]} h5 {[%emt 0:03:04]} 18. Qh3 {[%emt 0:
00:00]} Qb6 {[%emt 0:07:01]} 19. Nc2 {[%emt 0:01:38]} g5 {[%emt 0:02:20]} 20.
f4 {[%emt 0:05:35]} g4 {[%emt 0:03:56]} 21. Qg3 {[%emt 0:00:08]} O-O-O {
[%emt 0:00:44]} 22. f5 {[%emt 0:08:44]} h4 {[%emt 0:01:18]} 23. Qe1 {[%emt 0:
00:00]} Rdg8 {[%emt 0:02:05]} 24. Ne4 {[%emt 0:02:27]} h3 {[%emt 0:02:55]} 25.
g3 {[%emt 0:00:18]} Qc6 {[%emt 0:01:02]} 26. Qe2 {[%emt 0:04:41]} Nc7 {[%emt 0:
00:00]} 27. f6 {[%emt 0:02:30]} Bf8 {[%emt 0:00:32]} 28. Rf4 {[%emt 0:01:19]}
Nd5 {[%emt 0:02:55]} 29. Rf1 {[%emt 0:01:33]} Rg6 {[%emt 0:07:38]} 30. Re1 {
[%emt 0:01:05]} Rh5 {[%emt 0:04:50]} 31. Bd2 {[%emt 0:02:30]} Rf5 {[%emt 0:00:
00]} 32. Nb4 {[%emt 0:01:48]} Bxb4 {[%emt 0:02:36]} 33. axb4 {[%emt 0:02:03]}
Kb8 {[%emt 0:04:08]} 34. Ra3 {[%emt 0:02:06]} Qb6 {[%emt 0:03:12]} 35. Nd6 {
[%emt 0:01:35]} Qxd4+ {[%emt 0:01:34]} 36. Be3 {[%emt 0:00:37]} Nxe3 {[%emt 0:
00:00]} 37. Qxe3 {[%emt 0:02:13]} Qd5 {[%emt 0:02:05]} 38. Re2 {[%emt 0:02:25]}
Qh1# {[%emt 0:00:14]} 0-1